[Event "Titled Tuesday Blitz May 23 Late 2023"]
[White "Einarsson, Halldor Gretar"]
[Black "Thiel, Thomas"]
[WhiteFideId "2300150"]
[BlackFideId "4615964"]
[WhiteElo "2110"]
[BlackElo "2232"]
[Result "1-0"]
[Round "08"]
[TimeControl "180+2"]
[Date "2023.05.23"]
[WhiteClock "0:00:08"]
[BlackClock "0:00:48"]

1. d4 {[%clk 0:03:00]}  Nf6 {[%clk 0:02:56]} 2. c4 {[%clk 0:03:00]}  g6 {[%clk 0:02:56]} 3. f3 {[%clk 0:03:00]}  c5 {[%clk 0:02:53]} 4. d5 {[%clk 0:02:57]}  d6 {[%clk 0:02:53]} 5. Nc3 {[%clk 0:02:55]}  e6 {[%clk 0:02:53]} 6. e4 {[%clk 0:02:52]}  exd5 {[%clk 0:02:52]} 7. cxd5 {[%clk 0:02:51]}  Bg7 {[%clk 0:02:51]} 8. Nge2 {[%clk 0:02:49]}  O-O {[%clk 0:02:50]} 9. Ng3 {[%clk 0:02:49]}  h5 {[%clk 0:02:47]} 10. Bd3 {[%clk 0:02:48]}  Nbd7 {[%clk 0:02:39]} 11. O-O {[%clk 0:02:46]}  Ne5 {[%clk 0:02:37]} 12. Be2 {[%clk 0:02:42]}  h4 {[%clk 0:02:34]} 13. Nh1 {[%clk 0:02:41]}  h3 {[%clk 0:02:30]} 14. g3 {[%clk 0:02:40]}  Re8 {[%clk 0:02:19]} 15. Nf2 {[%clk 0:02:38]}  b6 {[%clk 0:02:07]} 16. Bg5 {[%clk 0:02:16]}  a6 {[%clk 0:01:58]} 17. a4 {[%clk 0:02:14]}  Qc7 {[%clk 0:01:57]} 18. Qd2 {[%clk 0:02:07]}  Nh7 {[%clk 0:01:53]} 19. Bh6 {[%clk 0:02:05]}  Bh8 {[%clk 0:01:51]} 20. f4 {[%clk 0:01:51]}  Nd7 {[%clk 0:01:41]} 21. Nxh3 {[%clk 0:01:46]}  c4 {[%clk 0:01:32]} 22. Nf2 {[%clk 0:00:59]}  Rb8 {[%clk 0:01:26]} 23. Rfc1 {[%clk 0:00:56]}  b5 {[%clk 0:01:23]} 24. axb5 {[%clk 0:00:47]}  axb5 {[%clk 0:01:24]} 25. Rab1 {[%clk 0:00:37]}  Nc5 {[%clk 0:01:21]} 26. b4 {[%clk 0:00:27]}  Nb3 {[%clk 0:01:18]} 27. Rxb3 {[%clk 0:00:24]}  cxb3 {[%clk 0:01:18]} 28. Nxb5 {[%clk 0:00:21]}  Qb6 {[%clk 0:01:18]} 29. f5 {[%clk 0:00:16]}  Rxe4 {[%clk 0:00:55]} 30. Rc6 {[%clk 0:00:10]}  Qe3 {[%clk 0:00:51]} 31. Bxe3 {[%clk 0:00:09]}  Rxe3 {[%clk 0:00:48]} 32. Qxe3 {[%clk 0:00:08]} 1-0


[Site "https://www.chess.com"]

[Event "Titled Tuesday Blitz May 23 Late 2023"]
[White "Clawitter, Craig"]
[Black "Slavin, Alexey"]
[WhiteFideId "2023105"]
[BlackFideId "24104388"]
[WhiteElo "2227"]
[BlackElo "2264"]
[Result "1-0"]
[Round "08"]
[TimeControl "180+2"]
[Date "2023.05.23"]
[WhiteClock "0:00:15"]
[BlackClock "0:01:24"]

1. e4 {[%clk 0:03:00]}  Nc6 {[%clk 0:02:59]} 2. Nc3 {[%clk 0:03:00]}  d6 {[%clk 0:02:59]} 3. d4 {[%clk 0:02:58]}  Nf6 {[%clk 0:02:59]} 4. Bb5 {[%clk 0:02:51]}  Bd7 {[%clk 0:02:58]} 5. Nf3 {[%clk 0:02:51]}  a6 {[%clk 0:02:59]} 6. Ba4 {[%clk 0:02:51]}  b5 {[%clk 0:02:58]} 7. Bb3 {[%clk 0:02:51]}  b4 {[%clk 0:02:46]} 8. e5 {[%clk 0:02:20]}  bxc3 {[%clk 0:02:46]} 9. exf6 {[%clk 0:02:20]}  exf6 {[%clk 0:02:46]} 10. bxc3 {[%clk 0:02:09]}  Be7 {[%clk 0:02:46]} 11. O-O {[%clk 0:02:08]}  O-O {[%clk 0:02:45]} 12. h4 {[%clk 0:02:01]}  Re8 {[%clk 0:02:41]} 13. Qd3 {[%clk 0:01:51]}  Na5 {[%clk 0:02:26]} 14. h5 {[%clk 0:01:36]}  h6 {[%clk 0:02:23]} 15. Bxf7+ {[%clk 0:01:27]}  Kxf7 {[%clk 0:02:21]} 16. Qg6+ {[%clk 0:01:27]}  Kf8 {[%clk 0:02:21]} 17. Bxh6 {[%clk 0:01:21]}  gxh6 {[%clk 0:02:18]} 18. Qxh6+ {[%clk 0:01:07]}  Kf7 {[%clk 0:02:12]} 19. Qh7+ {[%clk 0:00:47]}  Ke6 {[%clk 0:01:40]} 20. Rfe1+ {[%clk 0:00:28]}  Kd5 {[%clk 0:01:40]} 21. Qe4+ {[%clk 0:00:28]}  Kc4 {[%clk 0:01:39]} 22. d5+ {[%clk 0:00:19]}  Kc5 {[%clk 0:01:30]} 23. Qd4+ {[%clk 0:00:16]}  Kb5 {[%clk 0:01:28]} 24. Rab1+ {[%clk 0:00:14]}  Nb3 {[%clk 0:01:25]} 25. Rxb3+ {[%clk 0:00:14]}  Ka5 {[%clk 0:01:24]} 26. Qb4# {[%clk 0:00:15]} 1-0


[Site "https://www.chess.com"]

[Event "Titled Tuesday Blitz May 23 Late 2023"]
[White "Almedina Ortiz, Edgardo J."]
[Black "Rodriguez Santiago, Jaime"]
[WhiteFideId "3100197"]
[BlackFideId "3100898"]
[WhiteElo "2217"]
[BlackElo "2025"]
[Result "1-0"]
[Round "08"]
[TimeControl "180+2"]
[Date "2023.05.23"]
[WhiteClock "0:00:14"]
[BlackClock "0:00:39"]

1. d4 {[%clk 0:02:58]}  Nf6 {[%clk 0:02:59]} 2. c4 {[%clk 0:02:58]}  e6 {[%clk 0:02:59]} 3. Nc3 {[%clk 0:02:58]}  Bb4 {[%clk 0:02:57]} 4. Qc2 {[%clk 0:02:58]}  O-O {[%clk 0:02:56]} 5. a3 {[%clk 0:02:58]}  Bxc3+ {[%clk 0:02:55]} 6. Qxc3 {[%clk 0:02:59]}  d5 {[%clk 0:02:55]} 7. Bg5 {[%clk 0:02:56]}  h6 {[%clk 0:02:44]} 8. Bxf6 {[%clk 0:02:52]}  Qxf6 {[%clk 0:02:44]} 9. cxd5 {[%clk 0:02:52]}  exd5 {[%clk 0:02:44]} 10. Nf3 {[%clk 0:02:53]}  c6 {[%clk 0:02:40]} 11. e3 {[%clk 0:02:53]}  Re8 {[%clk 0:02:36]} 12. Bd3 {[%clk 0:02:49]}  Nd7 {[%clk 0:02:33]} 13. O-O {[%clk 0:02:45]}  Nf8 {[%clk 0:02:32]} 14. Ne5 {[%clk 0:02:34]}  Be6 {[%clk 0:02:25]} 15. b4 {[%clk 0:02:27]}  Nd7 {[%clk 0:02:14]} 16. f4 {[%clk 0:02:21]}  Bf5 {[%clk 0:02:03]} 17. Rf3 {[%clk 0:02:01]}  Bxd3 {[%clk 0:01:45]} 18. Qxd3 {[%clk 0:01:44]}  Nxe5 {[%clk 0:01:40]} 19. fxe5 {[%clk 0:01:41]}  Qe6 {[%clk 0:01:39]} 20. Raf1 {[%clk 0:01:40]}  Re7 {[%clk 0:01:39]} 21. b5 {[%clk 0:01:03]}  cxb5 {[%clk 0:01:26]} 22. Qxb5 {[%clk 0:01:03]}  a6 {[%clk 0:01:26]} 23. Qb4 {[%clk 0:00:47]}  Rc7 {[%clk 0:01:19]} 24. h3 {[%clk 0:00:32]}  b5 {[%clk 0:01:16]} 25. Rg3 {[%clk 0:00:31]}  Rac8 {[%clk 0:01:14]} 26. Rf6 {[%clk 0:00:30]}  Qe8 {[%clk 0:00:53]} 27. Rxa6 {[%clk 0:00:26]}  Rc4 {[%clk 0:00:53]} 28. Qd6 {[%clk 0:00:24]}  R8c6 {[%clk 0:00:39]} 29. Rxc6 {[%clk 0:00:20]}  Qxc6 {[%clk 0:00:40]} 30. Qd8+ {[%clk 0:00:16]}  Kh7 {[%clk 0:00:40]} 31. Qf8 {[%clk 0:00:14]}  Qe6 {[%clk 0:00:39]} 32. Qxg7# {[%clk 0:00:14]} 1-0


[Site "https://www.chess.com"]

[Event "Titled Tuesday Blitz May 23 Late 2023"]
[White "Dubreuil, Julien"]
[Black "Liu, Kelsey"]
[WhiteFideId "621285"]
[BlackFideId "30944481"]
[WhiteElo "2314"]
[BlackElo "2211"]
[Result "0-1"]
[Round "08"]
[TimeControl "180+2"]
[Date "2023.05.23"]
[WhiteClock "0:01:08"]
[BlackClock "0:00:54"]

1. e4 {[%clk 0:03:00]}  c5 {[%clk 0:02:52]} 2. Nf3 {[%clk 0:03:00]}  e6 {[%clk 0:02:52]} 3. d4 {[%clk 0:03:00]}  cxd4 {[%clk 0:02:53]} 4. Nxd4 {[%clk 0:03:00]}  Nc6 {[%clk 0:02:52]} 5. Nb5 {[%clk 0:02:59]}  d6 {[%clk 0:02:49]} 6. c4 {[%clk 0:03:00]}  a6 {[%clk 0:02:49]} 7. N5c3 {[%clk 0:02:59]}  Nf6 {[%clk 0:02:48]} 8. Be2 {[%clk 0:02:59]}  Be7 {[%clk 0:02:48]} 9. O-O {[%clk 0:02:59]}  O-O {[%clk 0:02:49]} 10. Be3 {[%clk 0:02:59]}  Qc7 {[%clk 0:02:48]} 11. Na3 {[%clk 0:02:58]}  b6 {[%clk 0:02:48]} 12. Rc1 {[%clk 0:02:58]}  Nd7 {[%clk 0:02:48]} 13. Kh1 {[%clk 0:02:57]}  Nc5 {[%clk 0:02:45]} 14. b4 {[%clk 0:02:45]}  Nxb4 {[%clk 0:02:43]} 15. Nc2 {[%clk 0:02:28]}  Nxc2 {[%clk 0:02:38]} 16. Qxc2 {[%clk 0:02:26]}  Bb7 {[%clk 0:02:38]} 17. Rb1 {[%clk 0:02:22]}  Rab8 {[%clk 0:02:33]} 18. Rb2 {[%clk 0:02:20]}  Bc6 {[%clk 0:02:27]} 19. Rfb1 {[%clk 0:02:18]}  Bf6 {[%clk 0:02:18]} 20. f3 {[%clk 0:02:18]}  Bxc3 {[%clk 0:02:15]} 21. Qxc3 {[%clk 0:02:16]}  Na4 {[%clk 0:02:16]} 22. Qc2 {[%clk 0:02:16]}  Nxb2 {[%clk 0:02:15]} 23. Qxb2 {[%clk 0:02:16]}  b5 {[%clk 0:02:13]} 24. c5 {[%clk 0:02:10]}  d5 {[%clk 0:02:03]} 25. Bd4 {[%clk 0:02:10]}  f6 {[%clk 0:02:00]} 26. e5 {[%clk 0:02:10]}  f5 {[%clk 0:01:57]} 27. f4 {[%clk 0:02:05]}  a5 {[%clk 0:01:46]} 28. Rg1 {[%clk 0:02:01]}  b4 {[%clk 0:01:44]} 29. g4 {[%clk 0:02:00]}  fxg4 {[%clk 0:01:43]} 30. Bxg4 {[%clk 0:01:59]}  Rxf4 {[%clk 0:01:20]} 31. Bxe6+ {[%clk 0:01:42]}  Kh8 {[%clk 0:01:20]} 32. Qd2 {[%clk 0:01:40]}  Rbf8 {[%clk 0:01:19]} 33. Bh3 {[%clk 0:01:34]}  Rh4 {[%clk 0:01:04]} 34. Qg2 {[%clk 0:01:21]}  Rxd4 {[%clk 0:01:02]} 35. e6 {[%clk 0:01:08]}  Rdf4 {[%clk 0:00:54]} 0-1


[Site "https://www.chess.com"]

[Event "Titled Tuesday Blitz May 23 Late 2023"]
[White "Kostiukov, Alexandr"]
[Black "Kovacevic, Radmila"]
[WhiteFideId "14108100"]
[BlackFideId "933171"]
[WhiteElo "2202"]
[BlackElo "2194"]
[Result "1-0"]
[Round "08"]
[TimeControl "180+2"]
[Date "2023.05.23"]
[WhiteClock "0:00:22"]
[BlackClock "0:00:00"]

1. g3 {[%clk 0:02:59]}  e5 {[%clk 0:02:59]} 2. Bg2 {[%clk 0:02:59]}  h5 {[%clk 0:02:58]} 3. h4 {[%clk 0:02:51]}  c5 {[%clk 0:02:54]} 4. c4 {[%clk 0:02:47]}  f5 {[%clk 0:02:49]} 5. Nc3 {[%clk 0:02:46]}  Nf6 {[%clk 0:02:44]} 6. e3 {[%clk 0:02:46]}  Nc6 {[%clk 0:02:42]} 7. Nge2 {[%clk 0:02:46]}  e4 {[%clk 0:02:31]} 8. d3 {[%clk 0:02:35]}  exd3 {[%clk 0:02:20]} 9. Qxd3 {[%clk 0:02:35]}  d6 {[%clk 0:02:06]} 10. Nf4 {[%clk 0:02:29]}  Ne5 {[%clk 0:02:05]} 11. Qe2 {[%clk 0:02:29]}  Nfg4 {[%clk 0:01:30]} 12. b3 {[%clk 0:02:22]}  g5 {[%clk 0:01:28]} 13. hxg5 {[%clk 0:02:21]}  Qxg5 {[%clk 0:01:28]} 14. Ncd5 {[%clk 0:02:04]}  Kf7 {[%clk 0:01:17]} 15. Bb2 {[%clk 0:02:01]}  Bg7 {[%clk 0:01:16]} 16. O-O-O {[%clk 0:01:58]}  Bd7 {[%clk 0:01:03]} 17. Nc7 {[%clk 0:01:49]}  Rac8 {[%clk 0:01:01]} 18. Bd5+ {[%clk 0:01:49]}  Ke7 {[%clk 0:00:56]} 19. Nce6 {[%clk 0:01:48]}  Qf6 {[%clk 0:00:43]} 20. Nxg7 {[%clk 0:01:31]}  Qxg7 {[%clk 0:00:44]} 21. Nxh5 {[%clk 0:01:29]}  Rxh5 {[%clk 0:00:36]} 22. Rxh5 {[%clk 0:01:28]}  Nf6 {[%clk 0:00:35]} 23. Rh4 {[%clk 0:01:07]}  b5 {[%clk 0:00:27]} 24. cxb5 {[%clk 0:00:51]}  c4 {[%clk 0:00:24]} 25. bxc4 {[%clk 0:00:41]}  Nfg4 {[%clk 0:00:23]} 26. f4 {[%clk 0:00:32]}  Bxb5 {[%clk 0:00:10]} 27. fxe5 {[%clk 0:00:31]}  Nxe5 {[%clk 0:00:09]} 28. Kb1 {[%clk 0:00:26]}  Ba6 {[%clk 0:00:00]} 29. Rdh1 {[%clk 0:00:22]} 1-0


[Site "https://www.chess.com"]

[Event "Titled Tuesday Blitz May 23 Late 2023"]
[White "Luxama, Jacques Muller"]
[Black "Djordjevic, Dejan N"]
[WhiteFideId "11900113"]
[BlackFideId "913316"]
[WhiteElo "1931"]
[BlackElo "2261"]
[Result "0-1"]
[Round "08"]
[TimeControl "180+2"]
[Date "2023.05.23"]
[WhiteClock "0:00:12"]
[BlackClock "0:00:05"]

1. e4 {[%clk 0:03:00]}  c5 {[%clk 0:02:59]} 2. Nf3 {[%clk 0:02:57]}  Nc6 {[%clk 0:02:59]} 3. Bb5 {[%clk 0:02:54]}  g6 {[%clk 0:02:58]} 4. Bxc6 {[%clk 0:02:51]}  dxc6 {[%clk 0:02:58]} 5. O-O {[%clk 0:02:50]}  Bg7 {[%clk 0:02:58]} 6. h3 {[%clk 0:02:50]}  e5 {[%clk 0:02:58]} 7. d3 {[%clk 0:02:50]}  Qc7 {[%clk 0:02:58]} 8. a4 {[%clk 0:02:46]}  a5 {[%clk 0:02:57]} 9. Nbd2 {[%clk 0:02:46]}  b6 {[%clk 0:02:57]} 10. Nc4 {[%clk 0:02:46]}  Rb8 {[%clk 0:02:55]} 11. Bd2 {[%clk 0:02:44]}  Be6 {[%clk 0:02:52]} 12. Bc3 {[%clk 0:02:42]}  f6 {[%clk 0:02:50]} 13. b3 {[%clk 0:02:40]}  Nh6 {[%clk 0:02:49]} 14. Nfd2 {[%clk 0:02:39]}  O-O {[%clk 0:02:46]} 15. Qc1 {[%clk 0:02:39]}  Rbe8 {[%clk 0:02:36]} 16. Qb2 {[%clk 0:02:36]}  g5 {[%clk 0:02:35]} 17. Ne3 {[%clk 0:02:31]}  Qd7 {[%clk 0:02:31]} 18. Ndc4 {[%clk 0:02:29]}  Rb8 {[%clk 0:02:27]} 19. f3 {[%clk 0:02:21]}  Nf7 {[%clk 0:02:26]} 20. Rad1 {[%clk 0:02:09]}  h5 {[%clk 0:02:23]} 21. Be1 {[%clk 0:01:58]}  Nh8 {[%clk 0:02:21]} 22. c3 {[%clk 0:01:57]}  Rfd8 {[%clk 0:02:07]} 23. Bf2 {[%clk 0:01:51]}  Ng6 {[%clk 0:02:05]} 24. Rd2 {[%clk 0:01:49]}  Nf4 {[%clk 0:02:03]} 25. Rfd1 {[%clk 0:01:47]}  Bxh3 {[%clk 0:01:47]} 26. d4 {[%clk 0:01:32]}  cxd4 {[%clk 0:01:44]} 27. cxd4 {[%clk 0:01:31]}  exd4 {[%clk 0:01:39]} 28. Rxd4 {[%clk 0:01:30]}  Qxd4 {[%clk 0:01:27]} 29. Rxd4 {[%clk 0:01:28]}  Rxd4 {[%clk 0:01:27]} 30. gxh3 {[%clk 0:01:22]}  Rd3 {[%clk 0:01:22]} 31. Nf5 {[%clk 0:01:14]}  Nxh3+ {[%clk 0:01:16]} 32. Kg2 {[%clk 0:01:13]}  Nf4+ {[%clk 0:01:16]} 33. Kh2 {[%clk 0:01:12]}  Rxf3 {[%clk 0:01:09]} 34. Bd4 {[%clk 0:01:07]}  Rf8 {[%clk 0:00:57]} 35. Nce3 {[%clk 0:00:59]}  Rh3+ {[%clk 0:00:48]} 36. Kg1 {[%clk 0:00:57]}  g4 {[%clk 0:00:36]} 37. Kf1 {[%clk 0:00:55]}  Rh1+ {[%clk 0:00:34]} 38. Kf2 {[%clk 0:00:47]}  Rh2+ {[%clk 0:00:34]} 39. Kg3 {[%clk 0:00:43]}  Rxb2 {[%clk 0:00:28]} 40. Bxb2 {[%clk 0:00:44]}  Ng6 {[%clk 0:00:22]} 41. Nc4 {[%clk 0:00:38]}  b5 {[%clk 0:00:20]} 42. Ncd6 {[%clk 0:00:37]}  bxa4 {[%clk 0:00:16]} 43. bxa4 {[%clk 0:00:36]}  Rb8 {[%clk 0:00:16]} 44. Bd4 {[%clk 0:00:34]}  Rb3+ {[%clk 0:00:15]} 45. Kf2 {[%clk 0:00:34]}  h4 {[%clk 0:00:15]} 46. Nxg7 {[%clk 0:00:29]}  Kxg7 {[%clk 0:00:14]} 47. Nf5+ {[%clk 0:00:30]}  Kh7 {[%clk 0:00:07]} 48. Bxf6 {[%clk 0:00:30]}  h3 {[%clk 0:00:07]} 49. e5 {[%clk 0:00:26]}  Rf3+ {[%clk 0:00:03]} 50. Ke2 {[%clk 0:00:25]}  Rxf5 {[%clk 0:00:04]} 51. Bh4 {[%clk 0:00:23]}  Nxe5 {[%clk 0:00:04]} 52. Bg3 {[%clk 0:00:23]}  Nc4 {[%clk 0:00:03]} 53. Kd3 {[%clk 0:00:22]}  Nb2+ {[%clk 0:00:03]} 54. Ke4 {[%clk 0:00:21]}  Rf3 {[%clk 0:00:03]} 55. Bd6 {[%clk 0:00:21]}  Nxa4 {[%clk 0:00:03]} 56. Be7 {[%clk 0:00:19]}  Kg6 {[%clk 0:00:04]} 57. Bd6 {[%clk 0:00:18]}  c5 {[%clk 0:00:04]} 58. Be5 {[%clk 0:00:17]}  c4 {[%clk 0:00:04]} 59. Kd4 {[%clk 0:00:17]}  c3 {[%clk 0:00:04]} 60. Ke4 {[%clk 0:00:17]}  c2 {[%clk 0:00:05]} 61. Bb2 {[%clk 0:00:16]}  Nxb2 {[%clk 0:00:04]} 62. Kd5 {[%clk 0:00:16]}  c1=Q {[%clk 0:00:04]} 63. Kd6 {[%clk 0:00:12]}  Qe1 {[%clk 0:00:05]} 0-1


[Site "https://www.chess.com"]

[Event "Titled Tuesday Blitz May 23 Late 2023"]
[White "Romero Ruscalleda, Josep"]
[Black "Hajiyev, Kanan"]
[WhiteFideId "2231859"]
[BlackFideId "13404148"]
[WhiteElo "2183"]
[BlackElo "2103"]
[Result "0-1"]
[Round "08"]
[TimeControl "180+2"]
[Date "2023.05.23"]
[WhiteClock "0:00:00"]
[BlackClock "0:00:05"]

1. e4 {[%clk 0:03:00]}  c6 {[%clk 0:02:59]} 2. Nc3 {[%clk 0:03:00]}  d5 {[%clk 0:02:59]} 3. Nf3 {[%clk 0:03:00]}  a6 {[%clk 0:03:00]} 4. d4 {[%clk 0:02:58]}  Bg4 {[%clk 0:03:00]} 5. Be2 {[%clk 0:02:58]}  e6 {[%clk 0:02:59]} 6. O-O {[%clk 0:02:56]}  Nf6 {[%clk 0:02:58]} 7. e5 {[%clk 0:02:55]}  Nfd7 {[%clk 0:02:58]} 8. h3 {[%clk 0:02:53]}  Bxf3 {[%clk 0:02:55]} 9. Bxf3 {[%clk 0:02:53]}  c5 {[%clk 0:02:56]} 10. Re1 {[%clk 0:02:46]}  cxd4 {[%clk 0:02:56]} 11. Qxd4 {[%clk 0:02:46]}  Nc6 {[%clk 0:02:57]} 12. Qf4 {[%clk 0:02:34]}  Qc7 {[%clk 0:02:57]} 13. Bxd5 {[%clk 0:02:28]}  Ncxe5 {[%clk 0:02:41]} 14. Bb3 {[%clk 0:02:22]}  Bd6 {[%clk 0:02:34]} 15. Ne4 {[%clk 0:02:11]}  Bb4 {[%clk 0:02:18]} 16. Bd2 {[%clk 0:01:52]}  Bxd2 {[%clk 0:02:17]} 17. Nxd2 {[%clk 0:01:52]}  O-O {[%clk 0:02:17]} 18. Re3 {[%clk 0:01:48]}  Rac8 {[%clk 0:02:15]} 19. Rae1 {[%clk 0:01:45]}  Ng6 {[%clk 0:02:14]} 20. Qb4 {[%clk 0:01:35]}  Nc5 {[%clk 0:02:07]} 21. Rc3 {[%clk 0:01:30]}  a5 {[%clk 0:02:03]} 22. Qb5 {[%clk 0:01:27]}  b6 {[%clk 0:01:55]} 23. Ne4 {[%clk 0:01:25]}  Qe5 {[%clk 0:01:16]} 24. Ree3 {[%clk 0:00:48]}  Nxe4 {[%clk 0:01:07]} 25. Qxe5 {[%clk 0:00:48]}  Nxe5 {[%clk 0:01:06]} 26. Rxc8 {[%clk 0:00:48]}  Rxc8 {[%clk 0:01:04]} 27. Rxe4 {[%clk 0:00:48]}  Ng6 {[%clk 0:00:47]} 28. Kf1 {[%clk 0:00:48]}  Kf8 {[%clk 0:00:45]} 29. Ke2 {[%clk 0:00:47]}  Ke7 {[%clk 0:00:45]} 30. f4 {[%clk 0:00:47]}  Rc5 {[%clk 0:00:43]} 31. g4 {[%clk 0:00:44]}  b5 {[%clk 0:00:39]} 32. f5 {[%clk 0:00:41]}  Nf8 {[%clk 0:00:36]} 33. fxe6 {[%clk 0:00:26]}  fxe6 {[%clk 0:00:36]} 34. c3 {[%clk 0:00:24]}  a4 {[%clk 0:00:37]} 35. Bc2 {[%clk 0:00:24]}  h6 {[%clk 0:00:37]} 36. a3 {[%clk 0:00:23]}  e5 {[%clk 0:00:37]} 37. Bd3 {[%clk 0:00:22]}  Kd6 {[%clk 0:00:33]} 38. Rb4 {[%clk 0:00:20]}  Kc6 {[%clk 0:00:33]} 39. Be4+ {[%clk 0:00:21]}  Kd6 {[%clk 0:00:30]} 40. Bd3 {[%clk 0:00:19]}  Kc6 {[%clk 0:00:31]} 41. Re4 {[%clk 0:00:18]}  Nd7 {[%clk 0:00:28]} 42. Re3 {[%clk 0:00:18]}  Nf6 {[%clk 0:00:27]} 43. Bf5 {[%clk 0:00:17]}  Nd5 {[%clk 0:00:27]} 44. Rd3 {[%clk 0:00:14]}  Nf4+ {[%clk 0:00:26]} 45. Ke3 {[%clk 0:00:15]}  Nxd3 {[%clk 0:00:27]} 46. Bxd3 {[%clk 0:00:15]}  Kd5 {[%clk 0:00:25]} 47. Be4+ {[%clk 0:00:15]}  Kd6 {[%clk 0:00:24]} 48. Kd3 {[%clk 0:00:15]}  Rc7 {[%clk 0:00:23]} 49. Bf5 {[%clk 0:00:15]}  Kd5 {[%clk 0:00:19]} 50. Be4+ {[%clk 0:00:14]}  Ke6 {[%clk 0:00:20]} 51. Bf5+ {[%clk 0:00:14]}  Kf6 {[%clk 0:00:20]} 52. Ke3 {[%clk 0:00:14]}  Rc4 {[%clk 0:00:18]} 53. Bd3 {[%clk 0:00:14]}  Rc5 {[%clk 0:00:18]} 54. Be4 {[%clk 0:00:14]}  Kg5 {[%clk 0:00:18]} 55. Kf3 {[%clk 0:00:11]}  Kh4 {[%clk 0:00:17]} 56. Kg2 {[%clk 0:00:11]}  Rc4 {[%clk 0:00:17]} 57. Bf3 {[%clk 0:00:10]}  Rc7 {[%clk 0:00:15]} 58. Be2 {[%clk 0:00:08]}  Rd7 {[%clk 0:00:12]} 59. Bxb5 {[%clk 0:00:07]}  Rb7 {[%clk 0:00:13]} 60. c4 {[%clk 0:00:06]}  e4 {[%clk 0:00:10]} 61. Kf2 {[%clk 0:00:06]}  Kxh3 {[%clk 0:00:10]} 62. g5 {[%clk 0:00:07]}  hxg5 {[%clk 0:00:09]} 63. Ke3 {[%clk 0:00:07]}  g4 {[%clk 0:00:09]} 64. Bxa4 {[%clk 0:00:06]}  Rxb2 {[%clk 0:00:08]} 65. Bc6 {[%clk 0:00:06]}  Rb3+ {[%clk 0:00:04]} 66. Kxe4 {[%clk 0:00:06]}  Rxa3 {[%clk 0:00:05]} 67. Bd7 {[%clk 0:00:05]}  Kh4 {[%clk 0:00:05]} 68. c5 {[%clk 0:00:05]}  g3 {[%clk 0:00:05]} 69. c6 {[%clk 0:00:04]}  g2 {[%clk 0:00:06]} 70. c7 {[%clk 0:00:00]}  Rc3 {[%clk 0:00:05]} 0-1


[Site "https://www.chess.com"]

[Event "Titled Tuesday Blitz May 23 Late 2023"]
[White "Howell, David W L"]
[Black "Ziatdinov, Raset"]
[WhiteFideId "410608"]
[BlackFideId "2015323"]
[WhiteElo "2567"]
[BlackElo "2220"]
[Result "1-0"]
[Round "08"]
[TimeControl "180+2"]
[Date "2023.05.23"]
[WhiteClock "0:00:21"]
[BlackClock "0:00:41"]

1. e4 {[%clk 0:02:56]}  e6 {[%clk 0:02:56]} 2. d4 {[%clk 0:02:49]}  d5 {[%clk 0:02:51]} 3. Nc3 {[%clk 0:02:50]}  Nf6 {[%clk 0:02:50]} 4. e5 {[%clk 0:02:49]}  Nfd7 {[%clk 0:02:51]} 5. f4 {[%clk 0:02:49]}  c5 {[%clk 0:02:52]} 6. Nf3 {[%clk 0:02:49]}  Nc6 {[%clk 0:02:52]} 7. Be3 {[%clk 0:02:49]}  a6 {[%clk 0:02:52]} 8. Qd2 {[%clk 0:02:48]}  b5 {[%clk 0:02:52]} 9. Be2 {[%clk 0:02:48]}  Qb6 {[%clk 0:02:53]} 10. Nd1 {[%clk 0:02:26]}  Bb7 {[%clk 0:02:51]} 11. c3 {[%clk 0:02:24]}  cxd4 {[%clk 0:02:51]} 12. cxd4 {[%clk 0:02:19]}  Rc8 {[%clk 0:02:50]} 13. O-O {[%clk 0:02:18]}  Na5 {[%clk 0:02:47]} 14. b3 {[%clk 0:02:16]}  Be7 {[%clk 0:02:41]} 15. Bd3 {[%clk 0:02:13]}  Kd8 {[%clk 0:02:31]} 16. Ng5 {[%clk 0:02:08]}  Rf8 {[%clk 0:02:00]} 17. Nxh7 {[%clk 0:02:00]}  Rh8 {[%clk 0:01:59]} 18. Ng5 {[%clk 0:02:00]}  Rf8 {[%clk 0:01:58]} 19. f5 {[%clk 0:01:31]}  Kc7 {[%clk 0:01:53]} 20. fxe6 {[%clk 0:01:16]}  fxe6 {[%clk 0:01:54]} 21. Nxe6+ {[%clk 0:01:11]}  Qxe6 {[%clk 0:01:53]} 22. Qxa5+ {[%clk 0:01:12]}  Kb8 {[%clk 0:01:53]} 23. Rxf8 {[%clk 0:01:10]}  Rxf8 {[%clk 0:01:52]} 24. Nf2 {[%clk 0:01:10]}  Bd8 {[%clk 0:01:47]} 25. Qd2 {[%clk 0:01:07]}  Bb6 {[%clk 0:01:47]} 26. Re1 {[%clk 0:01:05]}  Rf7 {[%clk 0:01:28]} 27. Nh3 {[%clk 0:01:04]}  Qg4 {[%clk 0:01:26]} 28. Ng5 {[%clk 0:00:48]}  Rf8 {[%clk 0:01:23]} 29. e6 {[%clk 0:00:38]}  Nf6 {[%clk 0:00:54]} 30. h3 {[%clk 0:00:30]}  Qh4 {[%clk 0:00:54]} 31. Nf3 {[%clk 0:00:26]}  Qg3 {[%clk 0:00:53]} 32. Bf4+ {[%clk 0:00:26]}  Bc7 {[%clk 0:00:49]} 33. Bxg3 {[%clk 0:00:25]}  Bxg3 {[%clk 0:00:50]} 34. e7 {[%clk 0:00:24]}  Re8 {[%clk 0:00:49]} 35. Bg6 {[%clk 0:00:24]}  Ne4 {[%clk 0:00:47]} 36. Rxe4 {[%clk 0:00:22]}  dxe4 {[%clk 0:00:45]} 37. Bxe8 {[%clk 0:00:23]}  exf3 {[%clk 0:00:43]} 38. gxf3 {[%clk 0:00:21]}  Ka7 {[%clk 0:00:41]} 1-0


[Site "https://www.chess.com"]